[Event "USA Championship 2022"]
[Site "Saint Louis"]
[Date "2022.10.14"]
[Round "9.2"]
[White "Dominguez Perez, Leinier"]
[Black "Sevian, Samuel"]
[Result "1/2-1/2"]
[ECO "C83"]
[WhiteElo "2747"]
[BlackElo "2684"]
[Annotator "TA"]
[PlyCount "226"]
[EventDate "2022.09.05"]
[EventType "tourn"]
[EventCountry "USA"]
[SourceTitle "playchess.com"]
[Source "ChessBase"]
[SourceQuality "1"]
[TimeControl "40/5400+30:1800+30"]

{[%evp 34,226,21,18,37,18,22,28,45,50,50,50,58,54,58,36,58,58,58,58,58,58,58,58,59,59,59,59,62,34,39,34,34,34,34,34,34,34,66,34,34,34,71,71,71,71,71,0,60,0,71,71,71,71,71,71,71,71,71,71,71,71,71,71,71,0,71,0,71,71,71,71,71,71,71,71,71,71,71,71,71,71,71,71,71,71,71,71,71,71,71,63,63,0,63,0,71,71,71,71,116,116,141,141,141,141,141,141,141,141,141,141,141,141,317,141,141,141,141,141,141,141,141,141,141,141,141,141,141,141,141,0,141,0,141,141,141,141,141,141,141,141,141,141,141,141,141,141,141,141,141,141,266,141,141,141,141,141,148,141,141,141,140,140,140,8,8,0,0,0,0,0,0,0,100,100,100,100,100,100,100,100,100,100,124,100,100,0,100,0,100,100,100,0,100]} 1. e4 {[%emt 0:00:36]} e5 {[%emt 0:00:06]} 2. Nf3 {[%emt 0:00:10]} Nc6 {[%emt 0:00:06]} 3. Bb5 {[%emt 0:00:31]} a6 {[%emt 0:00:11]} 4. Ba4 {[%emt 0:00:07]} Nf6 {[%emt 0:00:06]} 5. O-O {[%emt 0:00:34]} Nxe4 {[%emt 0:00:12]} 6. d4 {[%emt 0:00:13]} b5 {[%emt 0:00:07]} 7. Bb3 {[%emt 0:00:06]} d5 {[%emt 0:00:08]} 8. dxe5 {[%emt 0:00:13]} Be6 {[%emt 0:00:07]} 9. c3 {[%emt 0:00:57]} Be7 {[%emt 0:00:07]} 10. Nbd2 {[%emt 0:00:19]} O-O {[%emt 0:00:23]} 11. Bc2 {[%emt 0:00:49]} f5 {[%emt 0:00:07]} 12. Nb3 {[%emt 0:00:24]} Qd7 {[%emt 0:00:09]} 13. Nfd4 {[%emt 0:00:24]} Nxd4 {[%emt 0:00:08]} 14. Nxd4 {[%emt 0:00:07]} c5 {[%emt 0:00:08]} 15. Nxe6 {[%emt 0:00:10]} Qxe6 {[%emt 0:00:06]} 16. f3 {[%emt 0:00:07]} Ng5 {[%emt 0:00:08]} 17. Bxg5 {[%emt 0:00:09]} Bxg5 {[%emt 0:00:10]} 18. f4 {[%emt 0:00:04]} Be7 {[%emt 0:00:19]} 19. Qf3 {[%emt 0:00:09]} Rad8 {[%emt 0:00:39]} 20. Rfd1 {[%emt 0:00:22]} g6 {[%emt 0:23:12]} 21. Rd2 {[%emt 0:09:35]} Rd7 {[%emt 0:02:54]} 22. Rad1 {[%emt 0:00:13]} Rfd8 {[%emt 0:00:23]} 23. h3 {[%emt 0:04:07]} c4 {[%emt 0:35:59]} 24. b4 {[%emt 0:00:14]} d4 {[%emt 0:04:45]} 25. Rxd4 {[%emt 0:53:01]} Qb6 {[%emt 0:01:42]} 26. Qf2 {[%emt 0:01:33]} Rxd4 {[%emt 0:00:10]} 27. Rxd4 {[%emt 0:00:06]} a5 {[%emt 0:03:14]} 28. Rxd8+ $1 {[%emt 0:04:22]} Bxd8 {[%emt 0:02:52]} 29. a3 {[%emt 0:00:34]} axb4 {[%emt 0:00:15]} 30. axb4 {[%emt 0:00:06]} Kf7 {[%emt 0:02:30]} 31. Kf1 {[%emt 0:04:37]} (31. Bd1 {is interesting.} Ke6 32. Bf3 g5 33. fxg5 Qxf2+ 34. Kxf2 Bxg5 35. Bc6) 31... Qxf2+ {[%emt 0:04:17]} 32. Kxf2 {[%emt 0:00:02]} Ke6 {[%emt 0:00:05]} 33. Bd1 {[%emt 0:07:35]} g5 {[%emt 0:01:38]} 34. Bf3 {[%emt 0:03:02]} gxf4 {[%emt 0:02:24]} 35. Bc6 {[%emt 0:00:06]} Bc7 {[%emt 0:00:27]} 36. Ke2 {[%emt 0:02:02]} Bxe5 {[%emt 0:00:09]} 37. Kd2 {[%emt 0:00:05]} h6 {[%emt 0:00:29]} 38. Bxb5 {[%emt 0:02:46]} Kd5 {[%emt 0:00:04]} 39. Be8 {[%emt 0:05:51]} Ke6 {[%emt 0:00:05]} 40. Bb5 {[%emt 0:00:10]} Kd5 {[%emt 0:00:03]} 41. Be8 {[%emt 0:30:07]} Ke6 {[%emt 0:30:03]} 42. Bg6 {[%emt 0:00:32]} Bf6 {[%emt 0:00:00]} 43. Bh7 {[%emt 0:00:00]} Kf7 {[%emt 0:00:00]} 44. Bxf5 {[%emt 0:00:00]} Ke7 {[%emt 0:00:00]} 45. Bh7 {[%emt 0:00:00]} Kf7 {[%emt 0:00:00]} 46. Kc2 {[%emt 0:00:00]} h5 {[%emt 0:10:56]} 47. Bf5 {[%emt 0:00:00]} Ke7 {[%emt 0:00:13]} 48. Be4 {[%emt 0:00:00]} Ke6 {[%emt 0:00:15]} 49. Bh7 {[%emt 0:00:00]} Kf7 $1 {[%emt 0:00:04]} 50. Bf5 {[%emt 0:00:00]} Ke7 $1 {[%emt 0:00:08]} 51. Kd2 {[%emt 0:00:00]} Bg5 {[%emt 0:01:11]} 52. Kd1 {[%emt 0:00:00]} Bf6 {[%emt 0:00:13] [#]} 53. Kc2 $1 {[%emt 0:00:00]} h4 {[%emt 0:00:44]} 54. Bg6 {[%emt 0:00:00]} Ke6 {[%emt 0:00:31]} 55. Bh7 {[%emt 0:00:00]} Kf7 {[%emt 0:00:09]} 56. Kb2 {[%emt 0:01:37]} Be5 {[%emt 0:00:32]} 57. Bf5 {[%emt 0:04:29]} Ke7 {[%emt 0:00:06]} 58. Bc8 {[%emt 0:00:05]} Kd6 {[%emt 0:00:13]} 59. Ba6 {[%emt 0:00:07]} Kd5 {[%emt 0:00:04]} 60. Bb5 {[%emt 0:00:10]} Bf6 {[%emt 0:01:34]} 61. Kc2 {[%emt 0:00:17]} Be5 {[%emt 0:00:46]} 62. Be8 {[%emt 0:00:23]} Ke6 $1 {[%emt 0:00:05]} 63. Bg6 {[%emt 0:00:19]} Bf6 {[%emt 0:00:53]} 64. Bh7 {[%emt 0:00:38]} Kf7 $1 {[%emt 0:00:15]} 65. b5 {[%emt 0:00:49]} Bd8 {[%emt 0:01:59]} 66. Kd1 {[%emt 0:00:06]} Ba5 {[%emt 0:04:24]} 67. Kd2 {[%emt 0:00:02]} Ke6 {[%emt 0:01:57]} 68. Bg8+ {[%emt 0:00:08]} Kd6 {[%emt 0:00:10]} 69. Bxc4 {[%emt 0:00:08]} Bb6 {[%emt 0:02:42]} 70. Bf7 {[%emt 0:05:18]} Bf2 {[%emt 0:00:30]} 71. Kd3 {[%emt 0:01:30]} Kc5 {[%emt 0:00:36]} 72. c4 {[%emt 0:00:27]} Kb6 {[%emt 0:00:11]} 73. Ke4 {[%emt 0:01:09]} Bg3 {[%emt 0:00:02] [#]} 74. Kd5 $1 {[%emt 0:00:55]} Bf2 {[%emt 0:00:04]} 75. Bh5 {[%emt 0:00:31]} Bg1 {[%emt 0:00:03]} 76. Be2 {[%emt 0:01:10]} Bf2 {[%emt 0:00:06]} 77. Bf3 {[%emt 0:00:51]} Bg1 {[%emt 0:00:06]} 78. Kd6 {[%emt 0:00:22]} Bf2 {[%emt 0:00:04]} 79. Ke5 {[%emt 0:00:39]} Bg3 {[%emt 0:00:04]} 80. Kf5 {[%emt 0:00:30]} Kc5 {[%emt 0:00:47]} 81. Ke6 {[%emt 0:00:31]} Kb6 {[%emt 0:00:08]} 82. Kd6 {[%emt 0:00:08]} Bf2 {[%emt 0:00:03]} 83. Kd5 {[%emt 0:00:52]} Bg1 $1 {[%emt 0:00:04]} 84. Ke5 {[%emt 0:00:30]} Bh2 {[%emt 0:00:04]} 85. Kf6 {[%emt 0:00:21]} Bg3 {[%emt 0:00:05]} 86. Kg5 {[%emt 0:00:34]} Kc5 {[%emt 0:00:05]} 87. Kg4 {[%emt 0:00:13]} Kb6 {[%emt 0:00:02]} 88. Be2 {[%emt 0:00:32]} Kc5 {[%emt 0:00:04]} 89. Kf3 {[%emt 0:00:29]} Kb6 {[%emt 0:00:08]} 90. Bf1 {[%emt 0:00:17]} Kc5 {[%emt 0:00:12]} 91. Ke4 {[%emt 0:00:06]} Kb6 {[%emt 0:00:07]} 92. Kd5 {[%emt 0:01:10]} Bf2 {[%emt 0:00:04]} 93. Bd3 {[%emt 0:00:41]} Bg1 {[%emt 0:00:04]} 94. Kd6 {[%emt 0:00:31]} Bf2 {[%emt 0:00:03]} 95. Be2 {[%emt 0:00:37]} Bg1 {[%emt 0:00:05]} 96. Bf1 {[%emt 0:00:28]} Bf2 {[%emt 0:00:04]} 97. Kd5 {[%emt 0:00:32]} Bg1 {[%emt 0:00:08]} 98. Ke5 {[%emt 0:00:13]} Bh2 {[%emt 0:00:04]} 99. g4 {[%emt 0:00:39]} (99. Kf6 $16) 99... fxg3 $11 {[%emt 0:01:48]} 100. Bg2 {[%emt 0:00:01]} Bg1 {[%emt 0:00:04]} 101. Kf6 {[%emt 0:00:35]} Bc5 {[%emt 0:01:02]} 102. Bd5 {[%emt 0:00:32]} Bb4 {[%emt 0:02:36]} 103. Kg5 {[%emt 0:00:25]} g2 {[%emt 0:01:25]} (103... Be7+ $11 104. Kf5 Kc5) 104. Bxg2 $16 {[%emt 0:00:03]} Be1 {[%emt 0:00:03]} 105. Kf5 {[%emt 0:00:15]} Bf2 {[%emt 0:00:04]} 106. Bf1 {[%emt 0:00:09]} Bg1 {[%emt 0:00:08]} 107. Kg4 {[%emt 0:00:16]} Bf2 {[%emt 0:00:03]} 108. Kf3 {[%emt 0:00:04]} Bc5 {[%emt 0:00:12]} 109. Kf4 {[%emt 0:00:04]} Bg1 {[%emt 0:00:03]} 110. Kg4 {[%emt 0:00:07]} Bf2 $1 {[%emt 0:00:03]} 111. Kf4 {[%emt 0:00:08]} Bg1 $1 {[%emt 0:00:04]} 112. Kf5 {[%emt 0:00:05]} Bf2 {[%emt 0:00:08]} 113. Kf4 {[%emt 0:00:24]} Bg1 $1 {[%emt 0:00:12]} 1/2-1/2

[Event "USA Championship 2022"]
[Site "Saint Louis"]
[Date "2022.10.14"]
[Round "9.3"]
[White "Caruana, Fabiano"]
[Black "Liang, Awonder"]
[Result "1/2-1/2"]
[ECO "C42"]
[WhiteElo "2763"]
[BlackElo "2608"]
[Annotator "TA"]
[PlyCount "153"]
[EventDate "2022.09.05"]
[EventType "tourn"]
[EventCountry "USA"]
[SourceTitle "playchess.com"]
[Source "ChessBase"]
[SourceQuality "1"]
[TimeControl "40/5400+30:1800+30"]

{[%evp 14,152,54,11,10,17,14,10,20,25,20,28,11,25,28,18,16,14,48,53,58,69,61,64,57,54,77,76,84,68,78,70,66,62,62,72,66,73,83,83,82,71,94,80,96,95,111,99,98,83,129,106,113,109,113,109,115,114,113,98,126,127,121,117,111,61,61,0,89,0,55,46,48,21,21,21,21,11,21,21,21,21,27,27,41,0,0,0,0,0,6,0,0,0,0,0,0,0,0,0,0,0,0,0,0,0,0,0,0,0,0,0,0,0,0,0,0,0,0,0,0,0,0,0,0,0,0,0,0,0,0,0,0,0,0,0,0,0,0,0,0]} 1. e4 {[%emt 0:00:04]} e5 {[%emt 0:00:04]} 2. Nf3 {[%emt 0:00:04]} Nf6 {[%emt 0:00:06]} 3. Nxe5 {[%emt 0:00:25]} Nxe4 {[%emt 0:00:02]} 4. Qe2 {[%emt 0:03:03]} Qe7 {[%emt 0:00:04]} 5. Qxe4 {[%emt 0:01:01]} d6 {[%emt 0:00:02]} 6. d4 {[%emt 0:07:20]} dxe5 {[%emt 0:00:05]} 7. dxe5 {[%emt 0:03:23]} Nc6 {[%emt 0:00:09]} 8. Bb5 {[%emt 0:03:01] 8.Nc3 is the hot move.} (8. Nc3 $5 {[%cal Rc3d5]}) 8... Bd7 {[%emt 0:00:22] C42: Petroff Defence: 3 Nxe5 and unusual White 3rd moves.} 9. Nc3 {[%emt 0:00:23]} O-O-O {[%emt 0:22:25]} 10. Bf4 {[%emt 0:03:55] next 0-0-0 is good for White.} Qb4 {[%emt 0:00:12]} 11. O-O-O {[%emt 0:22:49]} Qxe4 {[%emt 0:00:08]} 12. Nxe4 {[%emt 0:00:03] Black must now prevent Ng5.} Nxe5 $1 {[%emt 0:00:22]} 13. Bxd7+ {[%emt 0:00:48]} Nxd7 {[%emt 0:00:02]} 14. Ng5 $36 {[%emt 0:00:56][%mdl 2048] White is pushing.} Be7 $1 {[%emt 0:00:01]} 15. h4 {[%emt 0:00:22] [#]} (15. Nxf7 {with more complications.} Rdf8 16. Nxh8 Rxf4 17. Rhe1) 15... Bxg5 $146 {[%emt 0:09:25]} ({Predecessor:} 15... Nc5 16. Rxd8+ Rxd8 17. Re1 Bf6 18. b3 Rd5 19. g3 h6 20. Nxf7 Rf5 21. Re8+ {½-½ (21) Ilyasov,A (2291)-Rashitov,D ICCF email 2012}) 16. hxg5 {[%emt 0:00:05]} f6 {[%emt 0:01:10]} 17. Rde1 {[%emt 0:06:07]} fxg5 {[%emt 0:07:43]} 18. Bxg5 {[%emt 0:00:10]} Rdf8 {[%emt 0:10:20]} 19. Re7 {[%emt 0:00:24]} Nb6 {[%emt 0:01:01]} (19... Rxf2 $2 20. Rxh7 $3 {[%mdl 512]} Rhf8 21. Rhxg7 Rf1+ 22. Kd2 $18) 20. Rxg7 {[%emt 0:32:18]} Rxf2 {[%emt 0:00:20]} 21. Bh4 {[%emt 0:00:55]} ({Reject} 21. Rhxh7 $6 Rxh7 22. Rxh7 Rxg2 $11) 21... Rff8 {[%emt 0:10:34]} 22. Be7 {[%emt 0:00:05]} Re8 {[%emt 0:02:47]} 23. Rhxh7 {[%emt 0:04:26] White is much more active.} Rxh7 {[%emt 0:00:57]} 24. Rxh7 $14 {[%emt 0:00:03][%mdl 4096] Endgame KRB-KRN} Nd5 {[%emt 0:07:55]} 25. Bg5 {[%emt 0:00:06]} Re2 {[%emt 0:02:10]} 26. Rh2 {[%emt 0:00:12]} b5 {[%emt 0:02:05]} 27. Kd1 {[%emt 0:00:28] Inhibits Re1+.} Re4 {[%emt 0:12:28]} 28. Bd2 {[%emt 0:00:19]} Kd7 {[%emt 0:00:49]} 29. g3 {[%emt 0:01:48]} Rg4 {[%emt 0:02:37]} 30. Rh3 {[%emt 0:00:39]} a5 {[%emt 0:01:28]} 31. Ke2 {[%emt 0:01:23]} Nb4 {[%emt 0:01:55]} (31... a4 $142) 32. Bf4 {[%emt 0:02:10] Threatens to win with Rh7+.} Rg7 {[%emt 0:01:07] Against Rh7} 33. Rh5 {[%emt 0:01:50]} Kc6 {[%emt 0:02:01]} 34. a4 {[%emt 0:01:40]} bxa4 {[%emt 0:01:30]} 35. Rxa5 {[%emt 0:00:08]} Nxc2 {[%emt 0:02:45]} 36. Rxa4 {[%emt 0:00:54]} Kd5 {[%emt 0:00:21] Against Rc4} 37. Kd3 {[%emt 0:02:21] Inhibits Nd4.} Ne1+ {[%emt 0:00:01] [#]} 38. Kc3 $1 {[%emt 0:00:05]} Ng2 {[%emt 0:00:22]} 39. Ra5+ {[%emt 0:00:39]} (39. Rd4+ $16 Ke6 40. Kc4) 39... Ke4 $1 {[%emt 0:00:38]} 40. Ra4+ {[%emt 0:02:49]} Kd5 $1 {[%emt 0:00:48]} 41. Ra5+ {[%emt 0:13:08]} Ke4 $1 {[%emt 0:00:08]} 42. Rg5 {[%emt 0:00:05]} Rd7 {[%emt 0:03:12]} 43. Bd2 {[%emt 0:02:38]} Rd3+ {[%emt 0:04:59]} 44. Kc2 {[%emt 0:00:04][%cal Og5e5]} Ne3+ {[%emt 0:04:57]} 45. Kc1 {[%emt 0:02:17]} Nf5 {[%emt 0:00:38]} 46. g4 {[%emt 0:00:46]} Nd4 {[%emt 0:00:53]} 47. Bc3 {[%emt 0:00:07]} c5 {[%emt 0:03:50]} 48. Kb1 {[%emt 0:02:09]} c4 {[%emt 0:01:05]} 49. Bxd4 {[%emt 0:05:41]} (49. Rc5 $5 {[%cal Rc5c4]} Rd1+ 50. Ka2 Ra1+ 51. Kxa1 Nb3+ 52. Kb1 Nxc5 53. Bd2 $14) 49... Kxd4 {[%emt 0:04:04] KR-KR. The position is equal.} 50. Rg8 {[%emt 0:00:20]} Rd1+ {[%emt 0:02:04]} 51. Ka2 {[%emt 0:00:35]} Ke5 {[%emt 0:00:43]} 52. Re8+ {[%emt 0:05:22]} Kf4 {[%emt 0:00:56]} 53. Re2 {[%emt 0:00:03]} Rc1 {[%emt 0:00:29]} 54. Ka3 {[%emt 0:00:35]} Kxg4 {[%emt 0:00:27]} 55. Kb4 {[%emt 0:01:21] And now Re4+ would win.} Kf5 {[%emt 0:00:06] Against Re4} 56. Kc5 {[%emt 0:00:31]} Kf6 {[%emt 0:00:57]} 57. Kd4 {[%emt 0:00:25]} Kf5 {[%emt 0:00:24]} 58. Kc5 {[%emt 0:01:04]} Kf6 {[%emt 0:00:11]} 59. Kd5 {[%emt 0:00:04]} Kf7 {[%emt 0:00:34]} 60. Kd6 {[%emt 0:00:30]} Rd1+ {[%emt 0:00:26]} 61. Kc5 {[%emt 0:00:14]} Rc1 $1 {[%emt 0:00:02]} 62. Kb4 {[%emt 0:00:26]} Kf6 {[%emt 0:00:08]} 63. Re3 {[%emt 0:00:27]} Rc2 {[%emt 0:00:16]} 64. Ka3 {[%emt 0:00:04]} Kf5 {[%emt 0:00:17]} 65. Rc3 {[%emt 0:01:25]} Rxc3+ {[%emt 0:00:06]} 66. bxc3 $11 {[%emt 0:00:03][%cal Bb2c3,Bc3c4,Bc4c5,Bc5c6,Bc6c7][%mdl 32] aiming for Kb4. KP-KP} Ke6 {[%emt 0:00:05]} (66... Ke4 $5 67. Ka4 $8 Ke5 $11) 67. Kb4 {[%emt 0:00:05]} Kd6 {[%emt 0:00:02]} 68. Kxc4 {[%emt 0:00:05] Threatening mate with Kb5. KP-K} Kc6 {[%emt 0:00:01]} 69. Kd4 {[%emt 0:00:05] White threatens Kc4 and mate.} Kd6 {[%emt 0:00:03]} 70. c4 {[%emt 0:00:03]} Kc6 {[%emt 0:00:04]} 71. c5 {[%emt 0:00:03]} Kc7 {[%emt 0:00:03]} 72. Kd5 {[%emt 0:00:03]} Kd7 {[%emt 0:00:02]} 73. c6+ {[%emt 0:00:03]} Kc7 $1 {[%emt 0:00:03]} 74. Kc5 {[%emt 0:00:02] White wants to mate with Kd5.} Kc8 {[%emt 0:00:04]} 75. Kb6 {[%emt 0:00:03] c7 would kill now.} Kb8 {[%emt 0:00:03]} 76. c7+ {[%emt 0:00:03]} Kc8 {[%emt 0:00:03]} 77. Kc6 {[%emt 0:00:09] Weighted Error Value: White=0.09 (flawless) /Black=0.04 (flawless)} 1/2-1/2

[Event "USA Championship 2022"]
[Site "Saint Louis"]
[Date "2022.10.14"]
[Round "9.5"]
[White "Swiercz, Dariusz"]
[Black "Moradiabadi, Elshan"]
[Result "1/2-1/2"]
[ECO "E45"]
[WhiteElo "2652"]
[BlackElo "2534"]
[Annotator "TA"]
[PlyCount "69"]
[EventDate "2022.09.05"]
[EventType "tourn"]
[EventCountry "USA"]
[SourceTitle "playchess.com"]
[Source "ChessBase"]
[SourceQuality "1"]
[TimeControl "40/5400+30:1800+30"]

{[%evp 13,69,12,18,14,18,8,13,14,12,0,0,0,11,0,0,0,9,0,37,35,34,-3,26,20,42,50,58,56,50,47,62,54,64,40,48,47,43,44,47,4,9,6,12,0,0,0,0,0,0,0,0,0,0,0,0,0,0,0]} 1. d4 {[%emt 0:03:00] Kharitonov,A} Nf6 {[%emt 0:00:05]} 2. c4 {[%emt 0:02:29]} e6 {[%emt 0:00:17]} 3. Nc3 {[%emt 0:00:07]} Bb4 {[%emt 0:00:03]} 4. e3 {[%emt 0:00:05]} b6 {[%emt 0:00:15]} 5. Nge2 {[%emt 0:02:34]} Ba6 {[%emt 0:00:18]} 6. Ng3 {[%emt 0:00:29]} Bxc3+ {[%emt 0:01:59]} 7. bxc3 {[%emt 0:00:10]} d5 {[%emt 0:00:04]} 8. cxd5 {[%emt 0:04:49] [#] Bxa6 is the strong threat. E45: Nimzo-Indian: Rubinstein: 4...b6 5 Ne2 Ba6.} Bxf1 {[%emt 0:00:14] [#]} 9. Rxf1 $146 {[%emt 0:00:02]} ({Predecessor:} 9. Kxf1 Qxd5 10. Qd3 Nbd7 11. e4 Qa5 12. e5 Nd5 13. c4 Nb4 14. Qb3 Nc6 15. Bb2 O-O {0-1 (57) Gligoric,S-Portisch,L Wijk aan Zee 1975 MCL [Kharitonov,A]}) 9... Qxd5 {[%emt 0:03:02]} 10. f3 {[%emt 0:00:16]} Nc6 {[%emt 0:04:21][%cal Bb8c6,Bc6a5,Ba5c4][%mdl 32]} 11. Kf2 {[%emt 0:07:06]} Qc4 {[%emt 0:07:19]} 12. Qb3 {[%emt 0:22:54]} Na5 {[%emt 0:00:11]} 13. Qxc4 {[%emt 0:00:02]} (13. Qa3 {seems wilder.} Nd5 14. Bd2 Qd3 15. Rfd1) 13... Nxc4 {[%emt 0:00:05] Pair of Knights!} 14. e4 {[%emt 0:00:04]} Nd7 {[%emt 0:08:09]} 15. Re1 {[%emt 0:14:03]} b5 {[%emt 0:12:18]} 16. a4 {[%emt 0:20:13]} c6 {[%emt 0:00:11]} 17. a5 {[%emt 0:00:04]} O-O {[%emt 0:10:45]} 18. Nf1 {[%emt 0:00:03]} f5 {[%emt 0:01:18]} 19. exf5 {[%emt 0:07:29]} exf5 {[%emt 0:00:19]} 20. Nd2 {[%emt 0:00:02]} Nxd2 {[%emt 0:09:02]} 21. Bxd2 {[%emt 0:00:01]} Kf7 {[%emt 0:01:38]} 22. c4 {[%emt 0:01:44]} bxc4 {[%emt 0:04:47]} 23. Rac1 {[%emt 0:01:04] White is more active.} Rab8 {[%emt 0:01:01]} 24. Rxc4 {[%emt 0:00:57]} Rb2 {[%emt 0:00:04]} 25. Re2 {[%emt 0:00:04]} Rc8 {[%emt 0:00:04]} 26. Be3 {[%emt 0:11:14]} (26. Rb4 $5 {[%cal Rb4b2]} Rxb4 27. Bxb4 $14) 26... Rb5 {[%emt 0:00:39] The position is equal.} 27. Bg5 {[%emt 0:01:04] [#] aiming for Re7+.} Nf6 {[%emt 0:02:46]} 28. Bxf6 {[%emt 0:01:17]} Kxf6 {[%emt 0:00:06]} 29. Rec2 {[%emt 0:00:20]} Rxa5 {[%emt 0:00:09]} 30. Rxc6+ {[%emt 0:00:03]} Rxc6 {[%emt 0:00:04]} 31. Rxc6+ $11 {[%emt 0:00:02] KR-KR} Kf7 {[%emt 0:00:28]} 32. Rc7+ {[%emt 0:00:56]} Kf6 {[%emt 0:00:25]} 33. Rc6+ {[%emt 0:01:00]} Kf7 {[%emt 0:00:05]} 34. Rc7+ {[%emt 0:01:00]} Kf6 {[%emt 0:00:04]} 35. Rc6+ {[%emt 0:00:26] Weighted Error Value: White=0.05 (flawless) /Black=0.04 (flawless)} 1/2-1/2

[Event "USA Championship 2022"]
[Site "Saint Louis"]
[Date "2022.10.14"]
[Round "9.6"]
[White "Shankland, Sam"]
[Black "Yoo, Christopher Woojin"]
[Result "1-0"]
[ECO "A21"]
[WhiteElo "2712"]
[BlackElo "2563"]
[Annotator "TA"]
[PlyCount "75"]
[EventDate "2022.09.05"]
[EventType "tourn"]
[EventCountry "USA"]
[SourceTitle "playchess.com"]
[Source "ChessBase"]
[SourceQuality "1"]
[TimeControl "40/5400+30:1800+30"]

{[%evp 9,75,0,0,0,0,0,0,11,2,-4,0,-7,-12,0,0,0,0,-4,55,64,51,45,172,170,181,171,173,174,157,155,222,205,387,372,489,223,546,215,233,207,249,152,314,270,256,192,171,172,322,321,468,466,932,922,939,925,962,953,939,872,1504,1497,1377,1331,29991,29990,29994,29994]} 1. c4 {[%emt 0:00:10] Giri,A} e5 {[%emt 0:00:25]} 2. Nc3 {[%emt 0:00:07]} Bb4 {[%emt 0:00:32]} 3. Nd5 {[%emt 0:00:09]} a5 {[%emt 0:00:05]} 4. Nf3 {[%emt 0:00:30]} d6 {[%emt 0:04:17]} 5. e3 {[%emt 0:05:45]} Nf6 {[%emt 0:04:56]} 6. a3 {[%emt 0:02:48] A21: English Opening: 1...e5 2 Nc3.} Nxd5 {[%emt 0:00:46]} 7. cxd5 {[%emt 0:00:04]} Bc5 {[%emt 0:00:04]} 8. d4 {[%emt 0:01:36] The position is equal.} exd4 {[%emt 0:00:07]} 9. exd4 {[%emt 0:00:16]} Bb6 {[%emt 0:00:23]} 10. Bg5 {[%emt 0:01:34]} f6 {[%emt 0:01:11]} 11. Be3 $36 {[%emt 0:00:52][%mdl 2048] White fights for an advantage.} O-O {[%emt 0:01:49]} 12. Bd3 {[%emt 0:01:50]} f5 {[%emt 0:04:17]} 13. Qc2 {[%emt 0:06:02] [#]} f4 $146 {[%emt 0:06:47]} (13... h6 $11) ({Predecessor:} 13... Nd7 14. Bxf5 Nf6 15. Bd3 h6 16. Nh4 Nxd5 17. Bh7+ Kh8 18. Ng6+ Kxh7 19. Nxf8+ Kg8 {1-0 (43) Ding,L (2811)-Yu,Y (2763) Khanty-Mansiysk 2019 CBM 192 [Giri,A]}) 14. Bxh7+ $14 {[%emt 0:02:45]} Kh8 {[%emt 0:00:06]} 15. Bd2 {[%emt 0:00:24]} Qe7+ {[%emt 0:05:51]} (15... Qe8+ $14 16. Kf1 Qh5) 16. Kf1 $18 {[%emt 0:03:22]} Bg4 {[%emt 0:07:40]} 17. Re1 {[%emt 0:05:21]} Qf6 {[%emt 0:01:45] [#]} 18. h4 $1 {[%emt 0:03:40][%cal Bh2h4,Bh4h5][%mdl 32]} Nd7 {[%emt 0:04:42] [#]} (18... Bxf3 19. gxf3 Qh6 20. Bg6 $16) 19. h5 $1 {[%emt 0:03:09] White is more active.} Bxf3 {[%emt 0:13:21]} (19... Rae8 $16) 20. gxf3 {[%emt 0:00:11] Hoping for Bg6.} Qg5 {[%emt 0:04:07]} (20... Qxd4 $2 21. Bc3 Qxf2+ 22. Qxf2 $18) (20... Qh6 {might work better.}) 21. Bg6 {[%emt 0:12:44][%cal Oh5h6] Black must now prevent h6!} Nf6 {[%emt 0:04:02]} 22. Qd3 {[%emt 0:07:20]} (22. h6 $142 gxh6 23. Ke2 (23. Qf5 Qxf5 24. Bxf5 Ng8 $16)) 22... a4 $2 {[%emt 0:02:29]} (22... Qh6 {is more resistant.} 23. Qf5 Nh7) 23. Bc3 $2 {[%emt 0:07:03] A strong pair of Bishops.} (23. h6 gxh6 24. Ke2 Rfe8+ 25. Bxe8 Rxe8+ 26. Kd1 Rxe1+ 27. Rxe1) 23... Ba5 {[%emt 0:03:01]} 24. Ke2 {[%emt 0:03:25]} Qh6 {[%emt 0:02:24]} (24... Nxd5 $2 25. h6 Rfe8+ 26. Bxe8 Rxe8+ 27. Kd2 Bxc3+ 28. bxc3 Rxe1 29. hxg7+ Kxg7 30. Qh7+ Kf8 31. Rxe1 $18) 25. Reg1 {[%emt 0:01:36]} Bxc3 $2 {[%emt 0:02:47] Black cannot hold the game after this.} (25... Nxd5 $16 {was necessary.} 26. Be4 Ne7) 26. bxc3 {[%emt 0:01:06] Strongly threatening Bf5.} Nxd5 {[%emt 0:00:04]} 27. c4 {[%emt 0:02:32]} Ne7 {[%emt 0:01:27]} 28. Kd2 {[%emt 0:02:21]} Ra5 {[%emt 0:03:43]} (28... d5 $142) 29. d5 {[%emt 0:03:43]} Rc5 {[%emt 0:02:01]} (29... c5 $142 30. Re1 Ng8) 30. Qe2 {[%emt 0:00:53]} Ng8 {[%emt 0:04:07]} (30... Nxd5 $142 31. Bc2 Qf6) 31. Bc2 {[%emt 0:02:33] And now Rg6 would win.} Rf6 {[%emt 0:00:04]} 32. Qf1 {[%emt 0:01:21]} b5 {[%emt 0:02:03]} 33. Rg6 {[%emt 0:00:16]} bxc4 {[%emt 0:00:04]} 34. Kc1 {[%emt 0:03:32]} Rf8 {[%emt 0:01:55]} 35. Rxh6+ {[%emt 0:02:06]} Nxh6 {[%emt 0:00:32]} 36. Qg2 {[%emt 0:00:35] Threatening mate with Rg1.} Kg8 {[%emt 0:00:35]} 37. Qg6 {[%emt 0:00:50]} c6 {[%emt 0:00:28]} 38. Rg1 {[%emt 0:00:22] Weighted Error Value: White=0.49/Black=0.85} 1-0